Cogmind - Beta 14 @@@ ROGUE MODE // 2025.01.03 @ 19:39:29 // Winter2022/Polymind Player: Demo Result: Destroyed by Y-54 Guardian with Flak Gun Performance ------------- Evolutions (4) 2000 Regions Visited (15) 3000 Robots Destroyed (37) 185 Value Destroyed (1395) 1395 Prototype IDs (26) 520 Alien Tech Used (0) 0 Bonus (6480) 6480 TOTAL SCORE: 13210 Bonus ------- Polymind Skill 4775 Follower Combat Kills 37 Entered Garrisons 400 Used RIF Installer 500 Entered DSFs 500 Aligned with FarCom 300 Friendly Fire -32 Cogmind --------- Core Integrity 0/850 Matter 95/100 Energy 240/240 System Corruption 0% Temperature Cool (34) Movement Treading (160) Location -6/Extension Parts ------- > --- POWER (1) -------- Improved Deuterium Engine > --- PROPULSION (2) --- Light Treads Light Treads > --- UTILITY (3) ------ Improved Heat Sink Improved Heat Sink Improved Light Armor Plating > --- WEAPON (2) ------- Gatling Laser Flak Gun > --- INVENTORY (1) ---- (None) Peak State ------------ > --- POWER ------------ Heavy Deuterium Engine > --- PROPULSION ------- Combat Antigrav System > --- UTILITY ---------- Advanced Launcher Guidance Computer Improved Target Analyzer Experimental Core Analyzer Improved Armor Integrity Analyzer EX Chip 1 EX Chip 1 EX Chip 1 EX Chip 1 EX Chip 1 EX Chip 1 EX Chip 1 EX Chip 1 EX Chip 1 EX Chip 1 EX Chip 2 EX Chip 2 EX Chip 2 EX Chip 2 EX Chip 2 EX Chip 2 EX Chip 2 EX Chip 2 > --- WEAPON ----------- AWS/EX-DEC > --- INVENTORY -------- Deploy-a-Sentry Deploy-a-Sentry [Rating: 100] Favorites ----------- Power Heavy Deuterium Engine Engine Heavy Deuterium Engine Power Core Light Nuclear Core Propulsion Combat Antigrav System Treads Light Treads Leg Aluminum Leg Wheel Wheel Hover Unit Combat Antigrav System Utility EX Chip 1 Device Improved Terrain Scanner Processor Advanced Launcher Guidance Computer Hackware EX Chip 1 Protection Improved Light Armor Plating Weapon AWS/EX-DEC Energy Gun AWS/EX-DEC Ballistic Gun Flak Gun Special Weapon Mining Laser Build | -11 -10 -9 -9 -9 -8 -8 -7 -7 -7 -6 -6 -6 -6 -6 -6 ------- Run | Yrd Mat Mat Min Exi Min Mat Fac DSF Gar Fac Was Fac Gar Fac Ext Slots Evolved . | . . . . . . . . . . . . . . . . Power . | . . . . . . . . . . . . . . . . Propulsion . | . . . . . . . . . . . . . . . . Utility . | . . . . . . . . . . . . . . . . Weapon . | . . . . . . . . . . . . . . . . Parts Attached . | . . . . . . . . . . . . . . . . Power . | . . . . . . . . . . . . . . . . Engine . | . . . . . . . . . . . . . . . . Core . | . . . . . . . . . . . . . . . . Reactor . | . . . . . . . . . . . . . . . . Propulsion . | . . . . . . . . . . . . . . . . Treads . | . . . . . . . . . . . . . . . . Leg . | . . . . . . . . . . . . . . . . Wheel . | . . . . . . . . . . . . . . . . Hover . | . . . . . . . . . . . . . . . . Flight . | . . . . . . . . . . . . . . . . Utility . | . . . . . . . . . . . . . . . . Device . | . . . . . . . . . . . . . . . . Storage . | . . . . . . . . . . . . . . . . Processor . | . . . . . . . . . . . . . . . . Hackware . | . . . . . . . . . . . . . . . . Protection . | . . . . . . . . . . . . . . . . Artifact . | . . . . . . . . . . . . . . . . Weapon . | . . . . . . . . . . . . . . . . Energy Gun . | . . . . . . . . . . . . . . . . Energy Cannon . | . . . . . . . . . . . . . . . . Ballistic Gun . | . . . . . . . . . . . . . . . . Ballistic Cannon . | . . . . . . . . . . . . . . . . Launcher . | . . . . . . . . . . . . . . . . Special Weapon . | . . . . . . . . . . . . . . . . Impact Weapon . | . . . . . . . . . . . . . . . . Slashing Weapon . | . . . . . . . . . . . . . . . . Piercing Weapon . | . . . . . . . . . . . . . . . . Special Melee Weapon . | . . . . . . . . . . . . . . . . Unidentified Prototypes . | . . . . . . . . . . . . . . . . Parts Lost 19 | . 6 6 . . . . . . . . . 4 2 . 1 Power 4 | . 2 1 . . . . . . . . . . 1 . . Propulsion 8 | . 3 3 . . . . . . . . . . 1 . 1 Utility 4 | . . 1 . . . . . . . . . 3 . . . Weapon 3 | . 1 1 . . . . . . . . . 1 . . . Highest Loss Streak 6 | . 4 6 . . . . . . . . . 4 2 . 1 To Critical Strikes . | . . . . . . . . . . . . . . . . Average Slot Usage (%) 81 | . 85 72 83 63 96 96 96 96 96 96 94 83 92 60 60 Engine 5 | . 7 11 16 4 3 3 3 3 3 3 1 2 17 . . Leg 2 | . 14 9 . . . . . . . . . . . . . Wheel 7 | . 15 10 16 2 . . . . . . . 5 35 20 16 Hover 1 | . . . . 1 3 3 3 3 3 3 3 2 . . . Device 11 | . 26 24 33 5 . . . . . . . 2 20 20 20 Processor 11 | . . . . 7 15 15 15 15 15 15 15 15 20 20 18 Hackware 34 | . . . . 35 69 69 69 69 69 69 69 52 . . . Energy Gun 3 | . 9 7 . 1 3 3 3 3 3 3 3 . . . . Special Weapon 2 | . 8 8 16 2 . . . . . . . . . . . Peak Build Rating 100 | 8 10 8 7 100 100 100 100 100 100 100 100 95 17 13 23 Average Rating 52 | 3 7 5 7 51 100 100 100 100 100 100 97 67 16 13 12 On Entrance 54 | . 8 6 7 7 100 100 100 100 100 100 100 95 17 13 13 Naked Turns 138 | . . 24 . 113 . . . . . . . . . . 1 Heaviest Build 23 | 6 6 6 6 21 21 21 21 21 21 21 21 10 6 1 23 Greatest Support 40 | 20 20 20 10 21 21 21 21 21 21 21 21 21 20 10 40 Greatest Overweight (x) . | . . . . . . . . . . . . . . . . Average Overweight (x) . | . . . . . . . . . . . . . . . . Largest Inventory Capacity 12 | . 1 1 . 2 2 2 2 2 2 2 2 12 12 12 12 Average Capacity 3 | . . . . 1 2 2 2 2 2 2 2 3 12 12 11 Most Carried 12 | . . . . 2 2 2 2 2 2 2 2 12 11 11 11 Average Carried 2 | . . . . . 2 2 2 2 2 2 2 3 11 11 7 Final Capacity 12 | . 1 . . 2 2 2 2 2 2 2 2 12 12 12 1 Final Carried 11 | . . . . 2 2 2 2 2 2 2 2 11 11 11 . Class Distribution -------------------- 50% | Thief 17% | Tunneler 17% | Mechanic 8% | Grunt 5% | Cogmind Dominant Class ---------------- Tunneler | -10/Materials Tunneler | -9/Materials Tunneler | -9/Mines Thief | -9/Exiles Thief | -8/Mines Thief | -8/Materials Thief | -7/Factory Thief | -7/DSF Thief | -7/Garrison Thief | -6/Factory Thief | -6/Waste Thief | -6/Factory Mechanic | -6/Garrison Mechanic | -6/Factory Mechanic | -6/Extension Resources | -11 -10 -9 -9 -9 -8 -8 -7 -7 -7 -6 -6 -6 -6 -6 -6 ----------- Run | Yrd Mat Mat Min Exi Min Mat Fac DSF Gar Fac Was Fac Gar Fac Ext Matter Collected 5 | . . . . . . . . . . . . . . . 5 Remotely . | . . . . . . . . . . . . . . . . Salvage Created 1464 | . 100 116 . . . 344 . 91 667 88 . 58 . . . Parts 68 | . 11 3 . . . 25 . 3 22 2 . 1 . . 1 Haulers Intercepted 1 | . . . . . . . . . . . . 1 . . . Recyclers Shooed 1 | . 1 . . . . . . . . . . . . . . Parts Field Recycled . | . . . . . . . . . . . . . . . . Retrieved Matter . | . . . . . . . . . . . . . . . . Parts Self-Destructed . | . . . . . . . . . . . . . . . . Prevented . | . . . . . . . . . . . . . . . . Kills | -11 -10 -9 -9 -9 -8 -8 -7 -7 -7 -6 -6 -6 -6 -6 -6 ------- Run | Yrd Mat Mat Min Exi Min Mat Fac DSF Gar Fac Was Fac Gar Fac Ext Combat Hostiles Destroyed 31 | . 8 2 . . . 6 . 1 12 1 . . . . 1 Guns 25 | . 5 1 . . . 5 . 1 11 1 . . . . 1 Cannons 3 | . 2 1 . . . . . . . . . . . . . AOE 1 | . . . . . . . . . 1 . . . . . . Classes Destroyed 9 | . 3 . . . . 2 . 1 1 . . 2 . . . Worker 1 | . . . . . . . . . . . . 1 . . . Tunneler 1 | . 1 . . . . . . . . . . . . . . Hauler 1 | . . . . . . . . . . . . 1 . . . Watcher 3 | . . . . . . 3 . . . . . . . . . Swarmer 6 | . 3 . . . . . . . 3 . . . . . . Grunt 20 | . 5 2 . . . 5 . . 6 1 . . . . 1 Sentry 3 | . . . . . . 1 . . 2 . . . . . . Specialist 1 | . . . . . . . . 1 . . . . . . . Hunter 1 | . . . . . . . . . 1 . . . . . . Best Kill Streak 11 | . 5 1 . . . 5 . 1 11 1 . 2 . . 1 Combat Bots Only 11 | . 4 1 . . . 3 . 1 11 1 . . . . 1 Max Kills in Single Turn 2 | . 1 1 . . . 1 . 1 1 1 . 2 . . 1 Gunslinging . | . . . . . . . . . . . . . . . . Exploded 1 | . . . . . . . . . 1 . . . . . . Melee . | . . . . . . . . . . . . . . . . Uniques/NPCs Destroyed . | . . . . . . . . . . . . . . . . Combat | -11 -10 -9 -9 -9 -8 -8 -7 -7 -7 -6 -6 -6 -6 -6 -6 -------- Run | Yrd Mat Mat Min Exi Min Mat Fac DSF Gar Fac Was Fac Gar Fac Ext Hostile Shots Fired 387 | . 71 72 . . . 9 . 1 38 2 1 68 19 . 106 Missed 117 | . 14 15 . . . 4 . . 21 . . 20 7 . 36 Damage Taken 3428 | . 605 851 . . . 70 . 42 203 36 53 612 182 . 774 Core 1495 | . 174 379 . . . 14 . . 76 . 53 416 62 . 321 Absorbed by Shields . | . . . . . . . . . . . . . . . . Core Remaining (%) 64 | 100 30 . . . 5 97 . . 89 . . . . . . Volleys Fired 73 | . 46 26 . . . . . . . . . . . . 1 Largest 2 | . 1 1 . . . . . . . . . . . . 2 Hottest 108 | . 100 100 . . . . . . . . . . . . 108 Shots Fired 146 | . 46 26 . . . 16 . 1 29 2 24 . . . 2 Gun 137 | . 39 24 . . . 16 . 1 29 2 24 . . . 2 Cannon . | . . . . . . . . . . . . . . . . Launcher . | . . . . . . . . . . . . . . . . Special 9 | . 7 2 . . . . . . . . . . . . . Kinetic 1 | . . . . . . . . . . . . . . . 1 Thermal 73 | . 46 26 . . . . . . . . . . . . 1 Explosive . | . . . . . . . . . . . . . . . . Electromagnetic 72 | . . . . . . 16 . 1 29 2 24 . . . . Robot Hit Streak 28 | . 12 14 . . . 17 . 19 15 19 28 . . . 4 Robot Miss Streak 3 | . 3 1 . . . 2 . . 3 . 3 . . . 1 Penetration Max . | . . . . . . . . . . . . . . . . Secondary Targets . | . . . . . . . . . . . . . . . . Autonomous 72 | . . . . . . 16 . 1 29 2 24 . . . . Shots Hit Robots 123 | . 30 22 . . . 16 . 1 27 2 23 . . . 2 Core Hits 82 | . 10 5 . . . 15 . 2 26 3 12 3 . . 6 Critical Kills . | . . . . . . . . . . . . . . . . Critical Parts Destroyed . | . . . . . . . . . . . . . . . . Critical Strikes 9 | . 1 . . . . 5 . . 2 1 . . . . . Burn 1 | . 1 . . . . . . . . . . . . . . Corrupt 8 | . . . . . . 5 . . 2 1 . . . . . Melee Attacks . | . . . . . . . . . . . . . . . . Impact . | . . . . . . . . . . . . . . . . Slashing . | . . . . . . . . . . . . . . . . Piercing . | . . . . . . . . . . . . . . . . Sneak Attacks . | . . . . . . . . . . . . . . . . Combat Hostiles . | . . . . . . . . . . . . . . . . Follow-up Attacks . | . . . . . . . . . . . . . . . . Damage Inflicted 2851 | . 516 318 . . . 540 . 28 824 54 44 466 . . 61 Guns 2132 | . 417 241 . . . 540 . 28 758 54 44 . . . 50 Cannons . | . . . . . . . . . . . . . . . . Explosions 526 | . . . . . . . . . 66 . . 460 . . . Melee . | . . . . . . . . . . . . . . . . Ramming 45 | . 3 25 . . . . . . . . . 6 . . 11 Kinetic 18 | . . . . . . . . . . . . . . . 18 Thermal 1323 | . 513 293 . . . . . . 66 . . 419 . . 32 Explosive . | . . . . . . . . . . . . . . . . Electromagnetic 1465 | . . . . . . 540 . 28 758 54 44 41 . . . Impact . | . . . . . . . . . . . . . . . . Slashing . | . . . . . . . . . . . . . . . . Piercing . | . . . . . . . . . . . . . . . . Highest Corruption . | . . . . . . . . . . . . . . . . Average Corruption . | . . . . . . . . . . . . . . . . Corruption Purged . | . . . . . . . . . . . . . . . . Corruption Blocked . | . . . . . . . . . . . . . . . . Overload Shots . | . . . . . . . . . . . . . . . . Overflow Damage 18 | . . . . . . . . . . . . 18 . . . Projectiles . | . . . . . . . . . . . . . . . . Explosions 18 | . . . . . . . . . . . . 18 . . . Melee . | . . . . . . . . . . . . . . . . Knockbacks . | . . . . . . . . . . . . . . . . Impact . | . . . . . . . . . . . . . . . . Kinetic . | . . . . . . . . . . . . . . . . Secondary . | . . . . . . . . . . . . . . . . Self-Inflicted Damage 63 | . 1 11 . . . . . . 44 . . 3 . . 4 Shots 1 | . . . . . . . . . 1 . . . . . . Rammed 13 | . 1 6 . . . . . . . . . 1 . . 5 Targets Rammed 15 | . 2 7 . . . . . . . . . 1 . . 5 Kicked 2 | . 1 1 . . . . . . . . . . . . . Crushed . | . . . . . . . . . . . . . . . . Highest Temperature 371 | . 346 371 . . . 2 . . 14 . . 23 . . 22 Average Temperature 152 | . 180 132 . . . 2 . . 9 . . 13 . . 12 Received Heat Transfer 1320 | . 267 516 . . . 27 . . 30 18 . 228 . . 234 Effects 4 | . 4 . . . . . . . . . . . . . . Energy Bleed 2 | . 2 . . . . . . . . . . . . . . Interference 1 | . 1 . . . . . . . . . . . . . . Short Circuit 1 | . 1 . . . . . . . . . . . . . . Siege Activations . | . . . . . . . . . . . . . . . . Robots Corrupted 1 | . . . . . . 1 . . . . . . . . . Combat Hostiles 1 | . . . . . . 1 . . . . . . . . . Parts Fried 3 | . . . . . . 1 . . 2 . . . . . . Impact Corruptions . | . . . . . . . . . . . . . . . . Robots Melted 1 | . 1 . . . . . . . . . . . . . . Combat Hostiles 1 | . 1 . . . . . . . . . . . . . . Parts Melted 2 | . 2 . . . . . . . . . . . . . . Heat Transferred 2211 | . 1236 600 . . . . . . 50 . . 250 . . 75 Parts Sabotaged . | . . . . . . . . . . . . . . . . Parts Stolen . | . . . . . . . . . . . . . . . . Parts Stripped . | . . . . . . . . . . . . . . . . Power Chain Reactions 1 | . . . . . . . . . 1 . . . . . . Alert | -11 -10 -9 -9 -9 -8 -8 -7 -7 -7 -6 -6 -6 -6 -6 -6 ------- Run | Yrd Mat Mat Min Exi Min Mat Fac DSF Gar Fac Was Fac Gar Fac Ext Peak Influence 362 | . 160 97 33 . . 251 114 99 362 235 82 319 228 144 175 Initial 223 | . . 67 33 . . . 114 79 74 189 82 25 223 114 70 Average 124 | . 71 77 33 . . 139 114 98 268 199 61 164 222 134 95 Maximum Alert Level 1 | . . . . . . 1 . . 1 1 . 1 1 . . Low Security (%) 78 | 100 100 100 100 . 100 65 100 100 30 75 100 56 . 100 100 Level 1 21 | . . . . . . 34 . . 69 24 . 43 100 . . Level 2 . | . . . . . . . . . . . . . . . . Level 3 . | . . . . . . . . . . . . . . . . Level 4 . | . . . . . . . . . . . . . . . . Level 5 . | . . . . . . . . . . . . . . . . High Security . | . . . . . . . . . . . . . . . . Max Security . | . . . . . . . . . . . . . . . . Squads Dispatched 7 | . . 1 . . . 1 1 . . . . 1 . . 3 Investigation 5 | . . . . . . . 1 . . . . 1 . . 3 Extermination . | . . . . . . . . . . . . . . . . Reinforcement 2 | . . 1 . . . 1 . . . . . . . . . Assault . | . . . . . . . . . . . . . . . . Garrison . | . . . . . . . . . . . . . . . . Intercept . | . . . . . . . . . . . . . . . . Searches Triggered . | . . . . . . . . . . . . . . . . Construction Impeded . | . . . . . . . . . . . . . . . . Haulers Reinforced . | . . . . . . . . . . . . . . . . Active Scanning Responses . | . . . . . . . . . . . . . . . . Cargo Convoy Interrupts . | . . . . . . . . . . . . . . . . Stealth | -11 -10 -9 -9 -9 -8 -8 -7 -7 -7 -6 -6 -6 -6 -6 -6 --------- Run | Yrd Mat Mat Min Exi Min Mat Fac DSF Gar Fac Was Fac Gar Fac Ext Distress Signals 2 | . . 1 . . . 1 . . . . . . . . . Communications Jammed . | . . . . . . . . . . . . . . . . Distress Signals . | . . . . . . . . . . . . . . . . Times Spotted 96 | . 17 12 . . . 12 . 1 12 1 6 13 3 . 19 Peak Tracking Total 9 | . 7 4 . . . 3 . 1 7 2 6 8 3 . 9 Tactical Retreats 10 | . . . . . . 2 . . . . . 5 1 . 2 Traps | -11 -10 -9 -9 -9 -8 -8 -7 -7 -7 -6 -6 -6 -6 -6 -6 ------- Run | Yrd Mat Mat Min Exi Min Mat Fac DSF Gar Fac Was Fac Gar Fac Ext Traps Triggered 4 | . . . . . . . . . . 1 . 1 . . 2 Indirectly . | . . . . . . . . . . . . . . . . Trap Hack Attempts . | . . . . . . . . . . . . . . . . Triggered . | . . . . . . . . . . . . . . . . Disarmed . | . . . . . . . . . . . . . . . . Reprogrammed . | . . . . . . . . . . . . . . . . Reused . | . . . . . . . . . . . . . . . . Traps Extracted . | . . . . . . . . . . . . . . . . Installed . | . . . . . . . . . . . . . . . . Triggered . | . . . . . . . . . . . . . . . . Objects Rigged 8 | . . . . . . . . . . . . 8 . . . Exploded 1 | . . . . . . . . . . . . 1 . . . Machines | -11 -10 -9 -9 -9 -8 -8 -7 -7 -7 -6 -6 -6 -6 -6 -6 ---------- Run | Yrd Mat Mat Min Exi Min Mat Fac DSF Gar Fac Was Fac Gar Fac Ext Machines Disabled 4 | . . . . . . . . . . . . 4 . . . Max in Single Turn 4 | . . . . . . . . . . . . 4 . . . Machines Repaired . | . . . . . . . . . . . . . . . . Machines Dismantled . | . . . . . . . . . . . . . . . . Machines Sabotaged . | . . . . . . . . . . . . . . . . Overloaded Fab Kills . | . . . . . . . . . . . . . . . . Hacking | -11 -10 -9 -9 -9 -8 -8 -7 -7 -7 -6 -6 -6 -6 -6 -6 --------- Run | Yrd Mat Mat Min Exi Min Mat Fac DSF Gar Fac Was Fac Gar Fac Ext Machines Accessed 13 | . . . . 1 . . 2 . 2 . . 2 . 2 4 Terminals 11 | . . . . . . . 2 . 2 . . 1 . 2 4 Fabricators . | . . . . . . . . . . . . . . . . Repair Stations . | . . . . . . . . . . . . . . . . Recycling Units . | . . . . . . . . . . . . . . . . Scanalyzers . | . . . . . . . . . . . . . . . . Garrison Access 1 | . . . . . . . . . . . . 1 . . . Total Hacks 38 | . . . . 1 . . 12 . 2 . . 9 . 3 11 Successful 21 | . . . . 1 . . 7 . 2 . . 9 . 1 1 Failed 17 | . . . . . . . 5 . . . . . . 2 10 Catastrophic 4 | . . . . . . . 2 . . . . . . . 2 Database Lockouts . | . . . . . . . . . . . . . . . . Manual 10 | . . . . 1 . . 1 . . . . 6 . 2 . Terminals 36 | . . . . . . . 12 . 2 . . 8 . 3 11 Fabricators . | . . . . . . . . . . . . . . . . Repair Stations . | . . . . . . . . . . . . . . . . Recycling Units . | . . . . . . . . . . . . . . . . Scanalyzers . | . . . . . . . . . . . . . . . . Garrison Access 1 | . . . . . . . . . . . . 1 . . . Terminal Hacks 17 | . . . . 1 . . 6 . 2 . . 6 . 1 1 Record 7 | . . . . . . . 5 . . . . 2 . . . Open Door 3 | . . . . . . . . . 1 . . . . 1 1 Open DSF 1 | . . . . . . . 1 . . . . . . . . Level Access Points 1 | . . . . . . . . . . . . 1 . . . Branch Access Points 1 | . . . . . . . . . . . . 1 . . . Emergency Access Points 1 | . . . . . . . . . . . . 1 . . . Locate Traps 1 | . . . . . . . . . . . . 1 . . . Garrison Registry 1 | . . . . . . . . . 1 . . . . . . Derelict Proto ID Bank 1 | . . . . 1 . . . . . . . . . . . Fabricator Hacks . | . . . . . . . . . . . . . . . . Repair Station Hacks . | . . . . . . . . . . . . . . . . Recycling Unit Hacks . | . . . . . . . . . . . . . . . . Scanalyzer . | . . . . . . . . . . . . . . . . Garrison Access Hacks 1 | . . . . . . . . . . . . 1 . . . Unlock Access 1 | . . . . . . . . . . . . 1 . . . Unauthorized Hacks 3 | . . . . . . . 1 . . . . 2 . . . Terminals 3 | . . . . . . . 1 . . . . 2 . . . Botnet 1 | . . . . . . . 1 . . . . . . . . Detonate 1 | . . . . . . . . . . . . 1 . . . Operators 1 | . . . . . . . . . . . . 1 . . . Fabricators . | . . . . . . . . . . . . . . . . Repair Stations . | . . . . . . . . . . . . . . . . Recycling Units . | . . . . . . . . . . . . . . . . Scanalyzers . | . . . . . . . . . . . . . . . . Garrison Access . | . . . . . . . . . . . . . . . . Data Cores Recovered . | . . . . . . . . . . . . . . . . Used . | . . . . . . . . . . . . . . . . Hacking Detections 8 | . . . . . . . 1 . . . . 2 . 1 4 Full Trace Events 5 | . . . . . . . 1 . . . . 1 . . 3 Feedback Events . | . . . . . . . . . . . . . . . . Feedback Blocked 1 | . . . . . . . 1 . . . . . . . . Robot Schematics Acquired . | . . . . . . . . . . . . . . . . Robots Built . | . . . . . . . . . . . . . . . . Authchips . | . . . . . . . . . . . . . . . . Time . | . . . . . . . . . . . . . . . . Total Robot Build Rating . | . . . . . . . . . . . . . . . . Part Schematics Acquired . | . . . . . . . . . . . . . . . . Parts Built . | . . . . . . . . . . . . . . . . Authchips . | . . . . . . . . . . . . . . . . Time . | . . . . . . . . . . . . . . . . Total Part Build Rating . | . . . . . . . . . . . . . . . . Parts Repaired . | . . . . . . . . . . . . . . . . Time . | . . . . . . . . . . . . . . . . Parts Recycled . | . . . . . . . . . . . . . . . . Recycled Matter . | . . . . . . . . . . . . . . . . Retrieved Matter . | . . . . . . . . . . . . . . . . Retrieved Components . | . . . . . . . . . . . . . . . . Parts Scanalyzed . | . . . . . . . . . . . . . . . . Part Schematics Acquired . | . . . . . . . . . . . . . . . . Parts Damaged . | . . . . . . . . . . . . . . . . Bothacking | -11 -10 -9 -9 -9 -8 -8 -7 -7 -7 -6 -6 -6 -6 -6 -6 ------------ Run | Yrd Mat Mat Min Exi Min Mat Fac DSF Gar Fac Was Fac Gar Fac Ext Used RIF Installer 1 | . . . . . . . . . 1 . . . . . . Robots Hacked 4 | . 1 1 . . . . . . . . . 1 . . 1 Non-combat 1 | . . . . . . . . . . . . 1 . . . Combat 3 | . 1 1 . . . . . . . . . . . . 1 Robot Hacks Applied 4 | . 1 1 . . . . . . . . . 1 . . 1 find_station 1 | . . . . . . . . . . . . 1 . . . find_shortcuts 3 | . 1 1 . . . . . . . . . . . . 1 Relay Couplers Released . | . . . . . . . . . . . . . . . . Fabnet Peak Effective % . | . . . . . . . . . . . . . . . . Robots Rewired 3 | . . . . . . . . . 3 . . . . . . Allies Hacked . | . . . . . . . . . . . . . . . . Hacks Repelled . | . . . . . . . . . . . . . . . . Allies | -11 -10 -9 -9 -9 -8 -8 -7 -7 -7 -6 -6 -6 -6 -6 -6 -------- Run | Yrd Mat Mat Min Exi Min Mat Fac DSF Gar Fac Was Fac Gar Fac Ext Total Allies 5 | . . . . . . . . . 3 . 1 . . . 1 Largest Group 3 | . . . . . . . . . 3 2 2 . . . 1 Highest-Rated Group 76 | . . . . . . . . . 76 51 62 . . . 31 Highest-Rated Ally 31 | . . . . . . . . . 31 31 31 . . . 31 Total Orders . | . . . . . . . . . . . . . . . . Ally Attacks 50 | . . . . . . . . . 7 2 30 . . . 11 Total Damage 857 | . . . . . . . . . 62 80 570 . . . 145 Kills 1 | . . . . . . . . . . 1 . . . . . Allies Corrupted . | . . . . . . . . . . . . . . . . Allies Melted . | . . . . . . . . . . . . . . . . Intel | -11 -10 -9 -9 -9 -8 -8 -7 -7 -7 -6 -6 -6 -6 -6 -6 ------- Run | Yrd Mat Mat Min Exi Min Mat Fac DSF Gar Fac Was Fac Gar Fac Ext Robot Analysis Total 5 | 1 1 1 . . . . . . . . . 1 . . 1 Derelict Logs Recovered . | . . . . . . . . . . . . . . . . Drone Launches . | . . . . . . . . . . . . . . . . Drone Recoveries . | . . . . . . . . . . . . . . . . Exploration | -11 -10 -9 -9 -9 -8 -8 -7 -7 -7 -6 -6 -6 -6 -6 -6 ------------- Run | Yrd Mat Mat Min Exi Min Mat Fac DSF Gar Fac Was Fac Gar Fac Ext Turns Passed 2451 | 10 269 229 106 350 106 264 53 24 215 126 85 215 78 133 188 Spaces Moved 2641 | 17 110 120 82 520 131 257 67 31 236 150 107 264 92 220 237 Core 683 | 10 2 15 . 227 . . . . . . . 1 . 215 213 Treads 3 | . . . . . . . . . . . . . . . 3 Legs 69 | . 41 28 . . . . . . . . . . . . . Wheels 458 | 7 67 77 82 74 . . . . . . . 33 92 5 21 Hover 1428 | . . . . 219 131 257 67 31 236 150 107 230 . . . Flight . | . . . . . . . . . . . . . . . . Fastest Speed 50 | 50 50 50 80 50 80 80 80 80 80 80 80 50 80 50 50 Average Speed 73 | 62 94 85 80 66 80 80 80 80 80 80 80 79 80 50 54 Slowest Speed 160 | 80 120 120 80 80 80 80 80 80 80 80 80 80 80 80 160 Overloaded Moves . | . . . . . . . . . . . . . . . . Propulsion Burnouts . | . . . . . . . . . . . . . . . . Robots Hopped . | . . . . . . . . . . . . . . . . Cave-ins Triggered . | . . . . . . . . . . . . . . . . Exploration Rate (%) 27 | 4 26 14 24 72 41 25 3 41 39 3 70 12 21 8 37 Regions Visited 15 Branch Regions 4 Pre-discovered Areas . | . . . . . . . . . . . . . . . . Known Exits Taken 3 | . . . . . . . 1 . . . . 1 . 1 . Unknown Exits Taken 7 | 1 1 1 1 1 1 1 . . . . . . . . . Scrap Searched 1 | . . . . . 1 . . . . . . . . . . Spaces Dug 3 | . 3 . . . . . . . . . . . . . . Terrain Destroyed 49 | . 3 . . . . . . . . . . 46 . . . Melee . | . . . . . . . . . . . . . . . . Projectile 3 | . 3 . . . . . . . . . . . . . . AOE 46 | . . . . . . . . . . . . 46 . . . Terrain Rammed . | . . . . . . . . . . . . . . . . Walls Destroyed . | . . . . . . . . . . . . . . . . Machines Disabled . | . . . . . . . . . . . . . . . . Actions | -11 -10 -9 -9 -9 -8 -8 -7 -7 -7 -6 -6 -6 -6 -6 -6 --------- Run | Yrd Mat Mat Min Exi Min Mat Fac DSF Gar Fac Was Fac Gar Fac Ext Total 3052 | 16 215 215 122 522 131 315 66 30 261 156 106 267 96 240 294 Wait 275 | . 53 62 39 . 1 59 . . 22 6 . . . 20 13 Move 2627 | 16 109 119 81 519 130 256 66 30 235 150 106 263 91 219 237 Hop . | . . . . . . . . . . . . . . . . Pick Up 2 | . . . . 2 . . . . . . . . . . . Fast Attach . | . . . . . . . . . . . . . . . . Attach . | . . . . . . . . . . . . . . . . Detach . | . . . . . . . . . . . . . . . . Swap . | . . . . . . . . . . . . . . . . Drop 1 | . . . . 1 . . . . . . . . . . . Fire 73 | . 46 26 . . . . . . . . . . . . 1 Melee . | . . . . . . . . . . . . . . . . Ram 10 | . 1 6 . . . . . . . . . 1 . . 2 Kick 2 | . 1 1 . . . . . . . . . . . . . Crush 3 | . . . . . . . . . . . . . . . 3 Escape Stasis 26 | . . . . . . . . . . . . . . . 26 Rewire 6 | . . 1 . . . . . . 4 . . 1 . . . Trap . | . . . . . . . . . . . . . . . . Miscellaneous 27 | . 5 . 2 . . . . . . . . 2 5 1 12 Route ------- -11/Scrapyard -10/Materials -9/Materials -9/Mines (discovered 2 exits: [*Mat] / *Exi) -9/Exiles -8/Mines -8/Materials -7/Factory -7/DSF -7/Garrison (discovered 3 exits: [*Fac x3]) -6/Factory -6/Waste -6/Factory (discovered 9 exits: Fac x4 / Low x2 / Ext x2 / Gar) -6/Garrison -6/Factory -6/Extension History --------- Turn | Location | Event 3 | -11/Scrapyard | Discovered new exit (range 15) 11 | -11/Scrapyard | Entered Materials 183 | -10/Materials | Lost 4 parts (1p2n1w) 221 | -10/Materials | Core integrity fell below 50% 268 | -10/Materials | Discovered new exit (range 10) 280 | -10/Materials | Entered another Materials area 357 | -9/Materials | Core integrity fell below 50% 385 | -9/Materials | Core integrity fell below 20% 400 | -9/Materials | Met 8R-AWN 432 | -9/Materials | Lost 6 parts (1p3n1u1w) 503 | -9/Materials | Discovered new exit (range 8) 509 | -9/Materials | Entered Mines 511 | -9/Mines | Followed 8R-AWN into the Mines 547 | -9/Mines | Discovered new exit (range 11) 609 | -9/Mines | Discovered new exit (range 5) 611 | -9/Mines | Received a Rocket Launcher from a helpful Derelict 615 | -9/Mines | Entered Exiles 634 | -9/Exiles | Welcomed by 8R-AWN 648 | -9/Exiles | Met EX-HEX 672 | -9/Exiles | Met EX-BIN 679 | -9/Exiles | Aligned with FarCom system 680 | -9/Exiles | Given EX-Vault access code 725 | -9/Exiles | Learned about 8R-AWN's background 756 | -9/Exiles | Met EX-DEC 776 | -9/Exiles | Visited The Gauntlet 788 | -9/Exiles | Took control of EX-DEC (ally) 847 | -9/Exiles | Opened EX-Vault 855 | -9/Exiles | Found Deploy-a-Sentry 871 | -9/Exiles | Warned to stay clear of 0b10 Research branches 956 | -9/Exiles | Discovered new exit (range 12) 965 | -9/Exiles | Left Exiles lab with Deploy-a-Sentry 965 | -9/Exiles | Entered Mines 1058 | -8/Mines | Discovered new exit (range 15) 1071 | -8/Mines | Entered Materials 1329 | -8/Materials | Discovered new exit (range 4) 1335 | -8/Materials | Entered Factory 1352 | -7/Factory | Identified exit to DSF 1388 | -7/Factory | Entered DSF 1400 | -7/DSF | Discovered new exit (range 15) 1412 | -7/DSF | Entered Garrison 1423 | -7/Garrison | Discovered new exit (range 56) 1423 | -7/Garrison | Discovered new exit (range 79) 1423 | -7/Garrison | Discovered new exit (range 82) 1464 | -7/Garrison | Triggered checkpoint 1466 | -7/Garrison | Triggered checkpoint 1466 | -7/Garrison | Triggered checkpoint 1476 | -7/Garrison | Triggered checkpoint 1538 | -7/Garrison | Destroyed 11 combat bots 1591 | -7/Garrison | Installed Relay Interface Framework 1627 | -7/Garrison | Entered Factory 1627 | -6/Factory | Accompanied by 2 allies 1753 | -6/Factory | Sucked down chute 1753 | -6/Factory | Entered Waste 1754 | -6/Waste | Met a frightened Derelict 1763 | -6/Waste | Spotted C-40 Crusher 1783 | -6/Waste | 2 allies followed down the chute 1792 | -6/Waste | Spotted C-40 Crusher 1798 | -6/Waste | Crushed by Compactor (0 parts destroyed, 1 dropped) 1801 | -6/Waste | Spotted C-40 Crusher 1812 | -6/Waste | Spotted C-40 Crusher 1829 | -6/Waste | Spotted C-40 Crusher 1829 | -6/Waste | Spotted C-40 Crusher 1831 | -6/Waste | Discovered new exit (range 10) 1838 | -6/Waste | Entered Factory 1864 | -6/Factory | Identified exit to Lower Caves 1864 | -6/Factory | Identified exit to Extension 1864 | -6/Factory | Identified exit to Factory 1944 | -6/Factory | Core integrity fell below 50% 1945 | -6/Factory | Lost 4 parts (3u1w) 2046 | -6/Factory | Identified exit to Garrison 2053 | -6/Factory | Entered Garrison 2083 | -6/Garrison | Triggered checkpoint 2091 | -6/Garrison | Triggered checkpoint 2125 | -6/Garrison | Discovered new exit (range 9) 2131 | -6/Garrison | Entered Factory 2262 | -6/Factory | Discovered exit to Extension (range 6) 2264 | -6/Factory | Entered Extension 2376 | -6/Extension | Rescued a captive Derelict 2433 | -6/Extension | Spotted B-75 Beast 2438 | -6/Extension | Spotted B-75 Beast 2440 | -6/Extension | Core integrity fell below 20% 2452 | -6/Extension | Destroyed by Y-54 Guardian with Flak Gun Last Messages --------------- 02417_ ALERT: Suspicious activity at Terminal E012. Dispatching Investigation squad. 02425_ Wheel destroyed. 02426_ >> Machine Analyzer network decryption results: 02426_ Terminal x1 02437_ Slammed into G-50 Soldier. 02438_ Slammed into R-10 Processor. 02440_ Released control of M-28 Smith. 02441_ Took control of Y-54 Guardian. 02441_ Extracted analysis data for Y-54 Guardian. 02441_ Acquired 3 matter. 02441_ M-28 Smith reactivates. 02444_ Machine disabled. 02444_ Acquired 2 matter. 02446_ Slammed into G-50 Soldier. 02446_ Machine disabled. 02447_ Slammed into G-50 Soldier. 02450_ G-50 Soldier destroyed. Map ----- +----------------------------------------------------+ | "????????????????????????????? | | ^ ###????????????????????????????? | | #??????????????????????????????? | | #??????????????????????????????? | | ################# #??????????????????????????????? | | #??????????????## ##?????????????????????????????? | | #??????????????# ########??????????????????????? | | #????????????= + #??????????????????????? | | #?????????? # ### #??????????????????????? | | ######### ## ##?# #??????????????????????? | | + ## #??# #??????????????????????? | | ##############?# #?# #g#??????????????????????? | | #??????????????# #?# # #??????????????????????? | | "#??????????????# #?# # ###????????????????????? | | ????????????????? ??##### T#????????????????????? | | ????????????????? ??????#Y""#????????????????????? | | ????????????????? ??????# ###????????????????????? | | ????????????????? ??????# #??????????????????????? | | ????????????????? ??????# #??????????????????????? | | ????????????????? ??????# #??????????????????????? | | ????????????????????????# #??????????????????????? | | ????????????????????????# #??????????????????????? | | ????????????????????????# #??????????????????????? | | ????????????????????????# #??????????????????????? | | ????????????????????????#%#??????????????????????? | | ????????????????????????#Y#??????????????????????? | | ????????????????????????#g#??##??#???????????????? | | ??????????????????????###g### ## ### ????????????? | | ??????????????????????#""BB" "" ""??????????? | | ??????????????????????# BB " " ??????????? | | ??????????????????????# m #?????????? | | ??????????????????????# #?????????? | | +?????????????????????#% #?????????? | | ????????????????????? ????????? | | ??????????????????? ????????? | | ????????????????? ?????????? | | ??????????????? ?????????? | | ?????????????? BB ?????????? | | ??????????????######### BB ??????????? | | ??????????????????????# ??????????? | | ??????????????????????# ???????????? | | ??????????????????????# ???????????? | | ??????????????????????# ?????????????? | | ??????????????????????######T#"""#???????????????? | | ????????????????????????????#????????????????????? | | ?????????????????????????????????????????????????? | | | | | | | | | +----------------------------------------------------+ Best States ------------- Heat Dissipation 43 Energy Generation 23 Energy Capacity 240 Matter Stores 100 Matter Capacity 100 Sight Range 16 Terrain Scan Range 16 Terrain Scan Density 10 Armor Coverage 150 Resistance: EX 50 Resistance: EM 90 Resistance: I 25 Evasion (%) 55 Launcher Accuracy 40 Target Analysis 6 Core Analysis 8 Armor Integrity Analysis 40 Recoil Reduction 2 Offensive Hacking 70 Defensive Hacking 56 Item Schematics ----------------- None Robot Schematics ------------------ None Fabricated ------------ Nothing Alien Tech Used ----------------- None Achievements -------------- None Challenges ------------ None Polymind | -11 -10 -9 -9 -9 -8 -8 -7 -7 -7 -6 -6 -6 -6 -6 -6 ---------- Run | Yrd Mat Mat Min Exi Min Mat Fac DSF Gar Fac Was Fac Gar Fac Ext Hosts 7 | 1 1 2 . 1 . . . . . . . 1 . . 1 Combat Hostiles 3 | . 1 1 . . . . . . . . . . . . 1 Allies 1 | . . . . 1 . . . . . . . . . . . Unique Host Classes 5 | 1 1 . . 1 . . . . . . . 1 . . 1 Average Host Suspicion 62 | 1 85 82 24 . 25 93 12 72 87 44 5 83 50 74 77 Unsuspicious Activity 333 | 2 25 . 10 16 . . . . . . 240 . . . 40 Returns to Shadow . | . . . . . . . . . . . . . . . . Fuzzy Dispatches . | . . . . . . . . . . . . . . . . Protomatter Created 274 | . 28 27 17 . . 57 . . 45 23 19 . . . 58 Used 146 | 5 30 20 . 33 . . . . . . . 7 . . 51 Decayed 59 | . . 17 . . . . . . . 23 . . . . 19 Highest Spend 51 | 5 30 15 . 33 . . . . . . . 7 . . 51 Top 5 Hosts by Kills: EX-DEC (-9/Exiles: 20) G-47 Trooper (-10/Materials: 6) T-07 Excavator (-11/Scrapyard: 2) G-34 Mercenary (-9/Materials: 1) T-07 Excavator (-9/Materials: 1) Game ------ Seed MakeshiftReactionAnalyzer Manual? 0 Play Time 00:24:42 Cumulative 121.9 hours Start 2025.01.03 @ 19:16:09 End 2025.01.03 @ 19:39:29 Sessions 1 Manual Loads 0 Difficulty Rogue Special Mode Winter2022/Polymind Game No. 150 Rogue 150 Adventurer 0 Explorer 0 Win Type - Total 1 Types 1/0/0/0/0/0/0/0/0 Lore% 53 Gallery% 67 Achievement% 53 Wizard Run 0 Options --------- Layout 1 ASCII 0 Keyboard 0 Movement Numpad Keybinds 0 Fullscreen 1 Font 24/Smallcaps Map View 50x35 Zoom Use 0% Tactical HUD 1 Map Filters NONE Filters NONE Steam 1 RUN: e2c38c4b-118d-4095-a1df-cf5e371678d9